Cogmind - Beta 14 @@@ ROGUE MODE // 2025.03.04 @ 21:02:58 Player: Pain3D Result: Destroyed by Y-45 Defender with Beam Rifle Performance ------------- Evolutions (1) 500 Regions Visited (3) 600 Robots Destroyed (44) 220 Value Destroyed (1048) 1048 Prototype IDs (2) 40 Alien Tech Used (0) 0 Bonus (0) 0 TOTAL SCORE: 2408 Bonus ------- None Cogmind --------- Core Integrity 0/400 Matter 450/450 Energy 208/280 System Corruption 1% Temperature Warm (147) Movement Core (700) Ox13 Location -9/Storage Parts ------- > --- POWER (1) -------- Cooled Ion Engine > --- PROPULSION (2) --- (None) > --- UTILITY (4) ------ Large Storage Unit Large Matter Pod Power Shielding Utility Shielding > --- WEAPON (2) ------- Beam Rifle Light EM Pulse Cannon > --- INVENTORY (15) --- Improved Ion Engine Heavy Ion Engine Heavy Ion Engine Small Storage Unit Medium Matter Pod (100) Core Shielding Beam Rifle Beam Rifle Beam Rifle Improved Light Cannon Peak State ------------ > --- POWER ------------ Cooled Ion Engine > --- PROPULSION ------- Aluminum Leg Aluminum Leg > --- UTILITY ---------- Large Storage Unit Large Matter Pod Power Shielding Utility Shielding > --- WEAPON ----------- EM Shotgun Beam Rifle > --- INVENTORY -------- Improved Ion Engine Heavy Ion Engine Small Storage Unit Medium Matter Pod High-capacity Matter Pod Core Shielding Beam Rifle Beam Rifle Beam Rifle Light EM Pulse Cannon Light Assault Rifle Improved Light Cannon [Rating: 15] Favorites ----------- Power Light Ion Engine Engine Light Ion Engine Propulsion Aluminum Leg Leg Aluminum Leg Utility Large Storage Unit Storage Large Storage Unit Protection Power Shielding Weapon Assault Rifle Energy Gun Beam Rifle Energy Cannon Light EM Pulse Cannon Ballistic Gun Assault Rifle Ballistic Cannon Improved Light Cannon Launcher Rocket Launcher Build | -11 -10 -9 -9 ------- Run | Yrd Mat Mat Sto Slots Evolved 2 | . . 2 . Power . | . . . . Propulsion . | . . . . Utility 2 | . . 2 . Weapon . | . . . . Parts Attached 42 | 6 13 22 1 Power 8 | 1 1 6 . Engine 8 | 1 1 6 . Core . | . . . . Reactor . | . . . . Propulsion 8 | 2 3 3 . Treads . | . . . . Leg 8 | 2 3 3 . Wheel . | . . . . Hover . | . . . . Flight . | . . . . Utility 8 | 1 3 4 . Device . | . . . . Storage 5 | 1 1 3 . Processor . | . . . . Hackware . | . . . . Protection 3 | . 2 1 . Artifact . | . . . . Weapon 18 | 2 6 9 1 Energy Gun 5 | . 1 4 . Energy Cannon 1 | . . . 1 Ballistic Gun 7 | 2 4 1 . Ballistic Cannon 1 | . . 1 . Launcher 4 | . 1 3 . Special Weapon . | . . . . Impact Weapon . | . . . . Slashing Weapon . | . . . . Piercing Weapon . | . . . . Special Melee Weapon . | . . . . Unidentified Prototypes 2 | . . 2 . Corrupted Parts 1 | . 1 . . System Corruption 2 | . 2 . . Parts Lost 16 | . 6 7 3 Power 2 | . 1 1 . Propulsion 7 | . 3 2 2 Utility . | . . . . Weapon 7 | . 2 4 1 Highest Loss Streak 7 | . 3 7 2 To Critical Strikes . | . . . . Average Slot Usage (%) 91 | . 86 94 96 Engine 11 | . 13 9 11 Leg 22 | . 27 18 18 Storage 18 | . 14 22 22 Protection 14 | . 2 22 22 Energy Gun 10 | . 3 14 13 Ballistic Gun 11 | . 23 4 . Peak Build Rating 15 | 6 7 15 15 Average Rating 9 | 4 6 11 13 On Entrance 7 | . 6 7 15 Naked Turns . | . . . . Heaviest Build 40 | 11 28 40 40 Greatest Support 23 | 20 20 23 20 Greatest Overweight (x) 13 | . 2 10 13 Average Overweight (x) 1 | . . 1 1 Largest Inventory Capacity 15 | 8 15 15 15 Average Capacity 14 | 7 14 15 15 Most Carried 14 | 5 7 14 11 Average Carried 6 | 1 4 8 10 Final Capacity 15 | 8 15 15 15 Final Carried 11 | 1 6 11 10 Class Distribution -------------------- 100% | Mutant Dominant Class ---------------- Mutant | -10/Materials Mutant | -9/Materials Mutant | -9/Storage Resources | -11 -10 -9 -9 ----------- Run | Yrd Mat Mat Sto Matter Collected 1186 | 236 251 628 71 Remotely . | . . . . Salvage Created 1338 | . 468 571 299 Parts 95 | . 35 37 23 Haulers Intercepted 1 | . . 1 . Recyclers Shooed . | . . . . Parts Field Recycled . | . . . . Retrieved Matter . | . . . . Parts Self-Destructed . | . . . . Prevented . | . . . . Kills | -11 -10 -9 -9 ------- Run | Yrd Mat Mat Sto Combat Hostiles Destroyed 33 | . 12 13 8 Guns 22 | . 10 8 4 Cannons 4 | . . 1 3 AOE 7 | . 2 4 1 Classes Destroyed 9 | . 4 5 . Worker 1 | . . 1 . Builder 1 | . . 1 . Hauler 1 | . . 1 . Recycler 2 | . . 2 . Operator 2 | . 1 1 . Watcher 4 | . 1 2 1 Swarmer 13 | . 3 6 4 Grunt 14 | . 9 3 2 Sentry 6 | . . 4 2 Best Kill Streak 5 | . 3 4 5 Combat Bots Only 5 | . 3 4 5 Max Kills in Single Turn 2 | . 2 2 1 Gunslinging . | . . . . Exploded 2 | . 2 2 1 Melee . | . . . . Uniques/NPCs Destroyed . | . . . . Combat | -11 -10 -9 -9 -------- Run | Yrd Mat Mat Sto Hostile Shots Fired 262 | . 105 88 69 Missed 68 | . 25 21 22 Damage Taken 2319 | . 828 907 584 Core 618 | . 217 161 240 Absorbed by Shields . | . . . . Redirected to Shielding 72 | . . 38 34 Core Remaining (%) 56 | 100 13 . . Volleys Fired 122 | . 54 40 28 Largest 2 | . 2 2 2 Hottest 112 | . 60 101 112 Shots Fired 228 | . 100 75 53 Gun 189 | . 98 58 33 Cannon 28 | . . 8 20 Launcher 11 | . 2 9 . Special . | . . . . Kinetic 109 | . 84 25 . Thermal 43 | . . 15 28 Explosive 11 | . 2 9 . Electromagnetic 65 | . 14 26 25 Robot Hit Streak 12 | . 12 7 8 Robot Miss Streak 4 | . 4 4 4 Penetration Max . | . . . . Secondary Targets 3 | . 1 2 . Max Gunslinging Chain 1 | . 1 1 . Shots Hit Robots 144 | . 66 46 32 Core Hits 73 | . 30 33 10 Critical Kills 1 | . 1 . . Critical Parts Destroyed 1 | . 1 . . Critical Strikes 7 | . 3 3 1 Burn 2 | . . 2 . Destroy 2 | . 2 . . Blast 1 | . . 1 . Corrupt 2 | . 1 . 1 Melee Attacks . | . . . . Impact . | . . . . Slashing . | . . . . Piercing . | . . . . Sneak Attacks . | . . . . Combat Hostiles . | . . . . Follow-up Attacks . | . . . . Damage Inflicted 2575 | . 832 1049 694 Guns 1378 | . 686 409 283 Cannons 520 | . . 151 369 Explosions 676 | . 145 489 42 Melee . | . . . . Ramming 1 | . 1 . . Kinetic 790 | . 561 229 . Thermal 493 | . . 218 275 Explosive 547 | . 145 402 . Electromagnetic 744 | . 125 200 419 Impact . | . . . . Slashing . | . . . . Piercing . | . . . . Highest Corruption 2 | . 2 1 1 Average Corruption 1 | . 2 1 1 Corruption Purged . | . . . . Corruption Blocked . | . . . . Effects 11 | . 6 4 1 Message Errors 5 | . 3 2 . Matter Fused 2 | . 1 1 . Energy Discharges 2 | . . 1 1 Data Loss (minor) 2 | . 2 . . Overload Shots . | . . . . Overflow Damage 18 | . . . 18 Projectiles 18 | . . . 18 Explosions . | . . . . Melee . | . . . . Knockbacks . | . . . . Impact . | . . . . Kinetic . | . . . . Secondary . | . . . . Self-Inflicted Damage 105 | . . 69 36 Shots 4 | . . 3 1 Rammed . | . . . . Targets Rammed 1 | . 1 . . Kicked 1 | . 1 . . Crushed . | . . . . Highest Temperature 257 | . 22 78 257 Average Temperature 49 | . 9 22 88 Received Heat Transfer 633 | . 318 204 111 Siege Activations . | . . . . Robots Corrupted . | . . . . Combat Hostiles . | . . . . Parts Fried . | . . . . Impact Corruptions . | . . . . Robots Melted . | . . . . Combat Hostiles . | . . . . Parts Melted 2 | . . 1 1 Heat Transferred 1173 | . . 581 592 Parts Sabotaged . | . . . . Parts Stolen . | . . . . Parts Stripped . | . . . . Power Chain Reactions 3 | . . 2 1 Alert | -11 -10 -9 -9 ------- Run | Yrd Mat Mat Sto Peak Influence 263 | . 182 148 263 Initial 19 | . . 19 7 Average 82 | . 70 79 147 Maximum Alert Level 1 | . . . 1 Low Security (%) 97 | 100 100 100 75 Level 1 2 | . . . 24 Level 2 . | . . . . Level 3 . | . . . . Level 4 . | . . . . Level 5 . | . . . . High Security . | . . . . Max Security . | . . . . Squads Dispatched 4 | . 2 1 1 Investigation 1 | . 1 . . Extermination . | . . . . Reinforcement 3 | . 1 1 1 Assault . | . . . . Garrison . | . . . . Intercept . | . . . . Searches Triggered . | . . . . Construction Impeded . | . . . . Haulers Reinforced . | . . . . Active Scanning Responses . | . . . . Cargo Convoy Interrupts . | . . . . Stealth | -11 -10 -9 -9 --------- Run | Yrd Mat Mat Sto Distress Signals 5 | . 2 3 . Communications Jammed . | . . . . Distress Signals . | . . . . Times Spotted 56 | . 23 21 12 Peak Tracking Total 7 | . 4 7 5 Tactical Retreats 1 | . 1 . . Traps | -11 -10 -9 -9 ------- Run | Yrd Mat Mat Sto Traps Triggered 2 | . 1 1 . Indirectly . | . . . . Trap Hack Attempts . | . . . . Triggered . | . . . . Disarmed . | . . . . Reprogrammed . | . . . . Reused . | . . . . Traps Extracted . | . . . . Installed . | . . . . Triggered . | . . . . Machines | -11 -10 -9 -9 ---------- Run | Yrd Mat Mat Sto Machines Disabled 3 | . . 1 2 Max in Single Turn 2 | . . 1 2 Machines Repaired . | . . . . Machines Dismantled . | . . . . Machines Sabotaged . | . . . . Overloaded Fab Kills . | . . . . Hacking | -11 -10 -9 -9 --------- Run | Yrd Mat Mat Sto Machines Accessed . | . . . . Terminals . | . . . . Fabricators . | . . . . Repair Stations . | . . . . Recycling Units . | . . . . Scanalyzers . | . . . . Garrison Access . | . . . . Total Hacks . | . . . . Successful . | . . . . Failed . | . . . . Catastrophic . | . . . . Database Lockouts . | . . . . Manual . | . . . . Terminals . | . . . . Fabricators . | . . . . Repair Stations . | . . . . Recycling Units . | . . . . Scanalyzers . | . . . . Garrison Access . | . . . . Terminal Hacks . | . . . . Fabricator Hacks . | . . . . Repair Station Hacks . | . . . . Recycling Unit Hacks . | . . . . Scanalyzer . | . . . . Garrison Access Hacks . | . . . . Unauthorized Hacks . | . . . . Terminals . | . . . . Fabricators . | . . . . Repair Stations . | . . . . Recycling Units . | . . . . Scanalyzers . | . . . . Garrison Access . | . . . . Data Cores Recovered . | . . . . Used . | . . . . Hacking Detections . | . . . . Full Trace Events . | . . . . Feedback Events . | . . . . Feedback Blocked . | . . . . Robot Schematics Acquired . | . . . . Robots Built . | . . . . Authchips . | . . . . Time . | . . . . Total Robot Build Rating . | . . . . Part Schematics Acquired . | . . . . Parts Built . | . . . . Authchips . | . . . . Time . | . . . . Total Part Build Rating . | . . . . Parts Repaired . | . . . . Time . | . . . . Parts Recycled . | . . . . Recycled Matter . | . . . . Retrieved Matter . | . . . . Retrieved Components . | . . . . Parts Scanalyzed . | . . . . Part Schematics Acquired . | . . . . Parts Damaged . | . . . . Bothacking | -11 -10 -9 -9 ------------ Run | Yrd Mat Mat Sto Used RIF Installer . | . . . . Robots Hacked . | . . . . Non-combat . | . . . . Combat . | . . . . Robot Hacks Applied . | . . . . Relay Couplers Released . | . . . . Fabnet Peak Effective % . | . . . . Robots Rewired . | . . . . Allies Hacked . | . . . . Hacks Repelled . | . . . . Allies | -11 -10 -9 -9 -------- Run | Yrd Mat Mat Sto Total Allies . | . . . . Largest Group . | . . . . Highest-Rated Group . | . . . . Highest-Rated Ally . | . . . . Total Orders . | . . . . Ally Attacks . | . . . . Total Damage . | . . . . Kills . | . . . . Allies Corrupted . | . . . . Allies Melted . | . . . . Intel | -11 -10 -9 -9 ------- Run | Yrd Mat Mat Sto Robot Analysis Total . | . . . . Derelict Logs Recovered . | . . . . Drone Launches . | . . . . Drone Recoveries . | . . . . Exploration | -11 -10 -9 -9 ------------- Run | Yrd Mat Mat Sto Turns Passed 2860 | 56 1129 1362 313 Spaces Moved 1219 | 45 508 568 98 Core 51 | 14 . 33 4 Treads . | . . . . Legs 1168 | 31 508 535 94 Wheels . | . . . . Hover . | . . . . Flight . | . . . . Fastest Speed 50 | 50 120 190 190 Average Speed 193 | 98 179 211 210 Slowest Speed 700 | 120 260 550 700 Overloaded Moves . | . . . . Propulsion Burnouts . | . . . . Robots Hopped . | . . . . Cave-ins Triggered . | . . . . Exploration Rate (%) 31 | 3 53 48 20 Regions Visited 3 Branch Regions 1 Pre-discovered Areas . | . . . . Known Exits Taken . | . . . . Unknown Exits Taken 3 | 1 1 1 . Scrap Searched . | . . . . Spaces Dug . | . . . . Terrain Destroyed 71 | . 13 56 2 Melee . | . . . . Projectile . | . . . . AOE 71 | . 13 56 2 Terrain Rammed . | . . . . Walls Destroyed . | . . . . Machines Disabled . | . . . . Actions | -11 -10 -9 -9 --------- Run | Yrd Mat Mat Sto Total 1492 | 56 631 652 153 Wait 67 | . 40 1 26 Move 1216 | 44 507 567 98 Hop . | . . . . Pick Up 38 | 6 14 18 . Fast Attach 1 | 1 . . . Attach 22 | 5 7 9 1 Detach . | . . . . Swap 19 | . 6 13 . Drop 6 | . 2 4 . Fire 122 | . 54 40 28 Melee . | . . . . Ram . | . . . . Kick 1 | . 1 . . Crush . | . . . . Escape Stasis . | . . . . Rewire . | . . . . Trap . | . . . . Miscellaneous . | . . . . Route ------- -11/Scrapyard -10/Materials -9/Materials (discovered 2 exits: [*Min] / [*Sto]) -9/Storage History --------- Turn | Location | Event 21 | -11/Scrapyard | Discovered new exit (range 15) 57 | -11/Scrapyard | Entered Materials 308 | -10/Materials | Build established: Mutant 714 | -10/Materials | Discovered new exit (range 16) 772 | -10/Materials | Lost 3 parts (1p1n1w) 797 | -10/Materials | Core integrity fell below 50% 822 | -10/Materials | Core integrity fell below 20% 848 | -10/Materials | Lost 3 parts (2n1w) 1186 | -10/Materials | Entered another Materials area 1186 | -9/Materials | Evolved 2 slots: Utility x2 1779 | -9/Materials | Lost 7 parts (1p2n4w) 2049 | -9/Materials | Discovered new exit (range 6) 2330 | -9/Materials | Discovered new exit (range 13) 2548 | -9/Materials | Entered Storage 2608 | -9/Storage | Core integrity fell below 50% 2850 | -9/Storage | Core integrity fell below 20% 2861 | -9/Storage | Destroyed by Y-45 Defender with Beam Rifle Last Messages --------------- U-05 Engineer lays Concrete. K-01 Serf collects debris. U-05 Engineer lays Concrete. K-01 Serf collects debris. Y-45 Defender destroyed. R-06 Scavenger collects Beam Rifle. R-06 Scavenger collects Lgt. Armor Plating. U-05 Engineer builds a Door. R-06 Scavenger collects Heat Sink. R-06 Scavenger collects Corrupted Hvy. Assault Rifle. Door malfunctions. R-06 Scavenger collects Heat Sink. U-05 Engineer repairs door. G-34 Mercenary destroyed. Aluminum Leg destroyed. Destroyed Heat Sink. G-34 Mercenary destroyed. R-06 Scavenger collects Sml. Laser. K-01 Serf collects debris. Map ----- +----------------------------------------------------+ | | | | | | | | | | | | | | | | | | | | | ?????????????????????????????????????????????????? | | ?????????????????????????????????????????????????? | | ????????????????????#????????????????????????????? | | ??????????????????## ####????????????????????????? | | ??????????????????? ????????????????????????? | | ##????????????????? ?????????????????????????? | | #####???????????"" ?????????????????????????? | | # #???????????"" ?????????????????????????? | | # #?????????#""" ?????????????????????????? | | # #?????????#""" ??????????????????????????? | | # #?????????#""" ??????????????????????????? | | # #?????????? ??????????????????????????? | | + #???????????? ??#???????????????????????? | | " # #####+#########+##+######+#### ????????? | | " # Y^^ ????????? | | " + a r k @^ %% o ????????? | | " # % ^ ^ u %! ????????? | | " #########+#########+############## ????????? | | #???# =[= *=# % #??????????????????????? | | ###???# "" # ####???????????????????? | | ??????# "" *=# "" #???????????????????? | | ??????# """ "" # """ """ """#???????????????????? | | ??????# """ """[# """ """ R"#???????????????????? | | ??????# """ """ # """ """ """#???????????????????? | | ??????# # ####???????????????????? | | ??????# ! # #??????????????????????? | | ??????#####################??????????????????????? | | ?????????????????????????????????????????????????? | | ?????????????????????????????????????????????????? | | ?????????????????????????????????????????????????? | | ?????????????????????????????????????????????????? | | ?????????????????????????????????????????????????? | | ?????????????????????????????????????????????????? | | ?????????????????????????????????????????????????? | | ?????????????????????????????????????????????????? | | ?????????????????????????????????????????????????? | | ?????????????????????????????????????????????????? | | ?????????????????????????????????????????????????? | | ?????????????????????????????????????????????????? | | ?????????????????????????????????????????????????? | +----------------------------------------------------+ Best States ------------- Heat Dissipation 28 Energy Generation 14 Energy Capacity 280 Matter Stores 450 Matter Capacity 500 Sight Range 16 Terrain Scan Density 10 Power Shielding 33 Utility Shielding 33 Evasion (%) 55 Item Schematics ----------------- None Robot Schematics ------------------ None Fabricated ------------ Nothing Alien Tech Used ----------------- None Achievements -------------- None Challenges ------------ None Game ------ Seed ReflectiveFactoryNanovents Manual? 0 Play Time 00:20:58 Cumulative 6.8 hours Start 2025.03.04 @ 12:59:18 End 2025.03.04 @ 21:02:58 Sessions 3 Manual Loads 0 Difficulty Rogue Special Mode None Game No. 17 Rogue 17 Adventurer 0 Explorer 0 Win Type - Total 0 Types 0/0/0/0/0/0/0/0/0 Lore% 7 Gallery% 13 Achievement% 11 Wizard Run 0 Options --------- Layout 1 ASCII 0 Keyboard 0 Movement Arrows Keybinds 0 Fullscreen 1 Font 24/Smallcaps Map View 50x35 Zoom Use 0% Tactical HUD 0 Map Filters NONE Filters NONE Steam 1 RUN: 404c3727-83d2-43c9-809e-95ab8aa9c9ef